bitfinex-derivatives/quotes_BNBF0:USTF0_20250710
["timestamp","ask_amount","ask_price","bid_price","bid_amount"]
[1752149686370,1.6723071,669.42,669.05,1.637]
[1752149686971,1.6723071,669.43,669.05,1.637]
[1752149687168,1.6723071,669.42,669.05,1.637]
[1752149687467,1.6723071,669.43,669.05,1.637]
[1752149688266,1.6723071,669.42,669.05,1.637]
[1752149689975,1.6723071,669.43,669.05,1.637]
[1752149692275,1.6723071,669.4,669.05,1.637]
[1752149692777,1.6723071,669.41,669.05,1.637]
[1752149693678,1.6723071,669.4,669.05,1.637]
[1752149696681,1.6723071,669.38,669.05,1.637]
[1752149697576,1.6723071,669.36,669.05,1.637]
[1752149698381,1.6723071,669.37,669.05,1.637]
[1752149698978,1.6723071,669.38,669.05,1.637]
[1752149699182,1.6723071,669.37,669.05,1.637]
[1752149705783,1.6723071,669.36,669.05,1.637]
[1752149708389,1.6723071,669.37,669.05,1.637]
[1752149712495,1.6723071,669.34,669.05,1.637]
[1752149712996,1.6723071,669.36,669.05,1.637]
[1752149713192,1.6723071,669.37,669.05,1.637]
[1752149713491,1.6723071,669.36,669.05,1.637]
[1752149714094,1.6723071,669.37,669.05,1.637]
[1752149717200,1.6723071,669.36,669.05,1.637]
[1752149717496,1.6723071,669.37,669.05,1.637]
[1752149718497,1.6723071,669.36,669.05,1.637]
[1752149720597,1.6723071,669.35,669.05,1.637]
[1752149722801,1.6723071,669.32,669.05,1.637]
[1752149723503,1.6723071,669.36,669.05,1.637]
[1752149725205,1.6723071,669.35,669.05,1.637]
[1752149728804,1.6723071,669.34,669.05,1.637]
[1752149729008,1.6723071,669.35,669.05,1.637]
[1752149730705,1.6723071,669.37,669.05,1.637]
[1752149731211,1.6723071,669.36,669.05,1.637]
[1752149731507,1.6723071,669.35,669.05,1.637]
[1752149732910,1.6723071,669.37,669.05,1.637]
[1752149735013,1.6723071,669.38,669.05,1.637]
[1752149735406,1.6723071,669.38,669.02,0.25997214]
[1752149736713,1.6723071,669.41,669.02,0.25997214]
[1752149739111,1.6723071,669.41,669.03,2.099]
[1752149740619,1.6723071,669.39,669.03,2.099]
[1752149742719,0.25999059,669.76,669.03,2.099]
[1752149742720,1.6723071,669.37,669.03,2.099]
[1752149742922,1.6723071,669.38,669.03,2.099]
[1752149744024,1.6723071,669.37,669.03,2.099]
[1752149744719,1.6723071,669.38,669.03,2.099]
[1752149744922,1.6723071,669.37,669.03,2.099]
[1752149746423,1.6723071,669.36,669.03,2.099]
[1752149747228,3.3438049,669.6,669.03,2.099]
[1752149747229,1.6723071,669.35,669.03,2.099]
[1752149747924,1.6723071,669.39,669.03,2.099]
[1752149757334,1.6723071,669.4,669.03,2.099]
[1752149757835,1.6723071,669.37,669.03,2.099]
[1752149758936,1.6723071,669.38,669.03,2.099]
[1752149759236,1.67494781,669.38,669.03,2.099]
[1752149765435,1.67494781,669.37,669.03,2.099]
[1752149768636,1.67494781,669.35,669.03,2.099]
[1752149772951,1.67494781,669.39,669.03,2.099]
[1752149775748,1.67494781,669.38,669.03,2.099]
[1752149776545,5.57300817,670.29,669.03,2.099]
[1752149776743,1.27445388,670.28,669.03,2.099]
[1752149776945,1.27445388,670.27,669.03,2.099]
[1752149777144,1.27445388,670.26,669.03,2.099]
[1752149777345,1.6749849,669.38,669.03,2.099]
[1752149778849,1.6749849,669.39,669.03,2.099]
[1752149780848,1.6749849,669.39,669.05,0.2599566]
[1752149781950,1.6749849,669.38,669.05,0.2599566]
[1752149782350,1.6749849,669.37,669.05,0.2599566]
[1752149782546,1.6749849,669.38,669.05,0.2599566]
[1752149785350,2.2333132,669.53,669.05,0.2599566]
[1752149785654,1.67526313,669.39,669.05,0.2599566]
[1752149787554,0.25992359,669.86,669.05,0.2599566]
[1752149787555,1.67526313,669.49,669.05,0.2599566]
[1752149787956,1.67526313,669.48,669.05,0.2599566]
[1752149788152,1.67526313,669.5,669.05,0.2599566]
[1752149789754,1.67526313,669.51,669.05,0.2599566]
[1752149790157,1.67526313,669.52,669.05,0.2599566]
[1752149791157,1.67526313,669.53,669.05,0.2599566]
[1752149792059,1.67526313,669.52,669.05,0.2599566]
[1752149792455,2.2333132,669.66,669.05,0.2599566]
[1752149792657,1.6739704,669.58,669.05,0.2599566]
[1752149793256,1.6739704,669.59,669.05,0.2599566]
[1752149793761,1.6739704,669.61,669.05,0.2599566]
[1752149793957,1.6739704,669.73,669.05,0.2599566]
[1752149794157,1.6739704,669.78,669.05,0.2599566]
[1752149795164,1.6739704,669.8,669.05,0.2599566]
[1752149795364,1.6739704,669.79,669.05,0.2599566]
[1752149795759,1.6739704,669.79,669.06,1.537]
[1752149796161,1.6739704,669.8,669.06,1.537]
[1752149796968,1.6739704,669.79,669.06,1.537]
[1752149797168,1.6739704,669.8,669.06,1.537]
[1752149798269,1.6739704,669.81,669.06,1.537]
[1752149799165,1.6739704,669.82,669.06,1.537]
[1752149801365,1.6739704,669.83,669.06,1.537]
[1752149802774,1.6739704,669.82,669.06,1.537]
[1752149803776,1.6739704,669.79,669.06,1.537]
[1752149808074,1.6739704,669.8,669.06,1.537]
[1752149810276,1.6739704,669.81,669.06,1.537]
[1752149811380,1.6739704,669.79,669.06,1.537]
[1752149812676,1.6739704,669.77,669.06,1.537]
[1752149812979,1.6739704,669.79,669.06,1.537]
[1752149814480,1.6739704,669.8,669.06,1.537]
[1752149822486,1.6739704,669.77,669.06,1.537]
[1752149822984,1.6739704,669.78,669.06,1.537]
[1752149824984,1.6739704,669.74,669.06,1.537]
[1752149825385,1.6739704,669.73,669.06,1.537]
[1752149827386,1.6739704,669.72,669.06,1.537]
[1752149832287,1.6739704,669.71,669.06,1.537]
[1752149832884,1.6739704,669.7,669.06,1.537]
[1752149833191,1.6739704,669.69,669.06,1.537]
[1752149836186,1.6739704,669.68,669.06,1.537]
[1752149837184,0.25988768,670.06,669.06,1.537]
[1752149837185,1.6739704,669.67,669.06,1.537]
[1752149837987,1.6739704,669.7,669.06,1.537]
[1752149838186,1.6739704,669.69,669.06,1.537]
[1752149839190,1.6739704,669.68,669.06,1.537]
[1752149839489,1.6739704,669.65,669.06,1.537]
[1752149841893,1.6739704,669.65,669.05,0.2599566]
[1752149842091,1.6739704,669.64,669.05,0.2599566]
[1752149842691,1.6739704,669.63,669.05,0.2599566]
[1752149843193,1.6739704,669.62,669.05,0.2599566]
[1752149844192,1.6739704,669.61,669.05,0.2599566]
[1752149844397,1.6739704,669.59,669.06,2.151]
[1752149844691,1.6739704,669.57,669.06,2.151]
[1752149845194,1.6739704,669.56,669.06,2.151]
[1752149845595,1.6739704,669.58,669.06,2.151]
[1752149846194,1.6739704,669.57,669.06,2.151]
[1752149847296,1.6739704,669.56,669.06,2.151]
[1752149851105,1.6739704,669.57,669.06,2.151]
[1752149853505,1.6739704,669.58,669.06,2.151]
[1752149856908,1.6739704,669.57,669.06,2.151]
[1752149858005,1.6739704,669.6,669.06,2.151]
[1752149858409,1.6739704,669.6,669.05,0.2599566]
[1752149862609,0.25988768,670.06,669.05,0.2599566]
[1752149862610,1.6739704,669.59,669.05,0.2599566]
[1752149867011,1.6739704,669.61,669.05,0.2599566]
[1752149867811,1.6739704,669.59,669.05,0.2599566]
[1752149872119,1.6739704,669.58,669.05,0.2599566]
[1752149874420,1.6739704,669.62,669.05,0.2599566]
[1752149875121,1.6739704,669.61,669.05,0.2599566]
[1752149877021,1.6739704,669.6,669.05,0.2599566]
[1752149881030,2.2333132,669.79,669.05,0.2599566]
[1752149881228,1.67401785,669.59,669.05,0.2599566]
[1752149882225,1.67401785,669.58,669.05,0.2599566]
[1752149884132,1.67401785,669.55,669.05,0.2599566]
[1752149884530,1.67401785,669.54,669.05,0.2599566]
[1752149886632,1.67401785,669.53,669.05,0.2599566]
[1752149886926,1.67401785,669.54,669.05,0.2599566]
[1752149887533,1.67401785,669.52,669.05,0.2599566]
[1752149888734,1.67401785,669.53,669.05,0.2599566]
[1752149893732,1.67401785,669.52,669.05,0.2599566]
[1752149894634,1.67585894,669.52,669.05,0.2599566]
[1752149896637,1.67585894,669.51,669.05,0.2599566]
[1752149897941,1.67585894,669.53,669.05,0.2599566]
[1752149898535,1.67585894,669.52,669.05,0.2599566]
[1752149899941,1.67585894,669.51,669.05,0.2599566]
[1752149903239,1.67585894,669.5,669.05,0.2599566]
[1752149906743,1.67585894,669.47,669.05,0.2599566]
[1752149908052,1.67585894,669.47,669.06,2.155]
[1752149915463,1.67585894,669.46,669.06,2.155]
[1752149917064,1.67585894,669.47,669.06,2.155]
[1752149917562,1.67585894,669.46,669.06,2.155]
[1752149917864,1.67585894,669.47,669.06,2.155]
[1752149918668,1.67585894,669.46,669.06,2.155]
[1752149922763,1.67585894,669.45,669.06,2.155]
[1752149923064,1.67585894,669.49,669.06,2.155]
[1752149924069,1.67585894,669.48,669.06,2.155]
[1752149930376,1.67585894,669.5,669.06,2.155]
[1752149930574,1.67585894,669.51,669.06,2.155]
[1752149931279,1.67585894,669.47,669.06,2.155]
[1752149932477,1.67585894,669.48,669.06,2.155]
[1752149932779,1.67585894,669.46,669.06,2.155]
[1752149934273,1.67585894,669.47,669.06,2.155]
[1752149936983,1.67585894,669.47,669.06,2.155]
[1752149939384,2.2333132,669.64,669.06,2.155]
[1752149939385,1.67585894,669.48,669.06,2.155]
[1752149940189,1.67585894,669.46,669.06,2.155]
[1752149940386,1.67585894,669.45,669.06,2.155]
[1752149942587,1.67585894,669.46,669.06,2.155]
[1752149942886,1.67585894,669.47,669.06,2.155]
[1752149947498,1.67585894,669.48,669.06,2.155]
[1752149948204,1.67585894,669.47,669.06,2.155]
[1752149951406,1.67585894,669.46,669.06,2.155]
[1752149952798,1.67585894,669.45,669.06,2.155]
[1752149957305,1.67585894,669.44,669.06,2.155]
[1752149957901,1.67585894,669.47,669.06,2.155]
[1752149959102,1.67585894,669.48,669.06,2.155]
[1752149959707,1.67585894,669.51,669.06,2.155]
[1752149960511,1.67585894,669.47,669.06,2.155]
[1752149961606,1.67585894,669.46,669.06,2.155]
[1752149964010,1.67585894,669.46,669.05,0.2599566]
[1752149965906,1.67585894,669.45,669.05,0.2599566]
[1752149967311,1.67585894,669.44,669.05,0.2599566]
[1752149967813,1.67585894,669.43,669.06,1.571]
[1752149968305,1.67585894,669.44,669.06,1.571]
[1752149968809,1.67585894,669.43,669.06,1.571]
[1752149969207,1.67585894,669.39,669.06,1.571]
[1752149970310,1.67585894,669.4,669.06,1.571]
[1752149971708,1.67585894,669.39,669.06,1.571]
[1752149973710,1.67585894,669.41,669.06,1.571]
[1752149974115,1.67585894,669.46,669.06,1.571]
[1752149974315,2.2333132,669.64,669.06,1.571]
[1752149974513,1.67519758,669.46,669.06,1.571]
[1752149977914,1.67519758,669.47,669.06,1.571]
[1752149980120,2.2333132,669.65,669.06,1.571]
[1752149980422,1.67524464,669.47,669.06,1.571]
[1752149981117,1.67524464,669.46,669.06,1.571]
[1752149981919,1.67524464,669.47,669.06,1.571]
[1752149983816,1.67524464,669.43,669.06,1.571]
[1752149986323,1.67524464,669.42,669.06,1.571]
[1752149986725,1.67524464,669.42,669.08,0.25994204]
[1752149987821,1.67524464,669.4,669.08,0.25994204]
[1752149988026,1.67524464,669.43,669.08,0.25994204]
[1752149988623,1.67524464,669.47,669.08,0.25994204]
[1752149989823,1.67524464,669.48,669.08,0.25994204]
[1752149990528,1.67524464,669.47,669.08,0.25994204]
[1752149993029,1.67524464,669.49,669.08,0.25994204]
[1752149994927,1.67524464,669.5,669.08,0.25994204]
[1752149998032,1.67524464,669.48,669.08,0.25994204]
[1752150000539,1.67524464,669.49,669.08,0.25994204]
[1752150001636,1.67524464,669.55,669.08,0.25994204]
[1752150002346,1.67524464,669.67,669.08,0.25994204]
[1752150003335,1.67524464,669.68,669.08,0.25994204]
[1752150005436,1.67524464,669.69,669.08,0.25994204]
[1752150008439,1.67524464,669.7,669.08,0.25994204]
[1752150009844,1.67524464,669.7,669.09,1.79]
[1752150010844,1.67524464,669.69,669.09,1.79]
[1752150011444,1.67524464,669.7,669.09,1.79]
[1752150011741,1.67524464,669.68,669.09,1.79]
[1752150013642,1.67524464,669.67,669.09,1.79]
[1752150016346,1.67524464,669.68,669.09,1.79]
[1752150016542,1.67524464,669.69,669.09,1.79]
[1752150017946,2.2333132,669.86,669.09,1.79]
[1752150017947,1.67524464,669.68,669.09,1.79]
[1752150020848,1.67524464,669.69,669.09,1.79]
[1752150021749,1.67524464,669.74,669.09,1.79]
[1752150022452,1.67524464,669.75,669.09,1.79]
[1752150022847,1.67524464,669.76,669.09,1.79]
[1752150023053,1.67524464,669.75,669.09,1.79]
[1752150028152,1.67524464,669.76,669.09,1.79]
[1752150028351,1.67524464,669.75,669.09,1.79]
[1752150028853,1.67524464,669.74,669.09,1.79]
[1752150029850,1.67524464,669.73,669.09,1.79]
[1752150030054,1.67524464,669.69,669.09,1.79]
[1752150031255,1.67524464,669.63,669.09,1.79]
[1752150031451,1.67524464,669.62,669.09,1.79]
[1752150031851,1.67524464,669.62,669.08,0.25994204]
[1752150032355,1.67524464,669.61,669.08,0.25994204]
[1752150033753,1.67524464,669.57,669.08,0.25994204]
[1752150033958,1.67524464,669.56,669.08,0.25994204]
[1752150034359,1.67524464,669.52,669.08,0.25994204]
[1752150034860,1.67524464,669.49,669.08,0.25994204]
[1752150035160,1.67524464,669.49,669.09,2.368]
[1752150035356,1.67524464,669.48,669.09,2.368]
[1752150035656,1.67524464,669.49,669.09,2.368]
[1752150035864,1.67524464,669.47,669.09,2.368]
[1752150038061,1.67524464,669.5,669.09,2.368]
[1752150041468,1.67524464,669.49,669.09,2.368]
[1752150042168,1.67524464,669.48,669.09,2.368]
[1752150047571,1.67524464,669.49,669.09,2.368]
[1752150047870,1.67524464,669.46,669.09,2.368]
[1752150049871,1.67524464,669.45,669.09,2.368]
[1752150051376,1.67524464,669.46,669.09,2.368]
[1752150051774,1.67524464,669.47,669.09,2.368]
[1752150057585,1.67524464,669.48,669.09,2.368]
[1752150060482,2.2333132,669.62,669.09,2.368]
[1752150060887,1.67084216,669.48,669.09,2.368]
[1752150061586,1.67084216,669.47,669.09,2.368]
[1752150062889,1.67084216,669.5,669.09,2.368]
[1752150066889,1.67084216,669.51,669.09,2.368]
[1752150070389,1.67084216,669.5,669.09,2.368]
[1752150072894,1.67084216,669.49,669.09,2.368]
[1752150073295,1.67084216,669.48,669.09,2.368]
[1752150073795,1.67084216,669.49,669.09,2.368]
[1752150073993,1.67084216,669.48,669.09,2.368]
[1752150076795,1.67084216,669.45,669.09,2.368]
[1752150078001,1.67084216,669.49,669.09,2.368]
[1752150080400,1.67084216,669.48,669.09,2.368]
[1752150080603,1.67084216,669.5,669.09,2.368]
[1752150081503,1.67084216,669.49,669.09,2.368]
[1752150083001,1.67084216,669.49,669.08,0.25994204]
[1752150084306,1.67084216,669.48,669.08,0.25994204]
[1752150085503,1.67084216,669.47,669.08,0.25994204]
[1752150086808,1.67084216,669.47,669.09,2.099]
[1752150087508,1.67084216,669.46,669.09,2.099]
[1752150088009,1.67084216,669.45,669.09,2.099]
[1752150088508,1.67084216,669.44,669.09,2.099]
[1752150089510,1.67084216,669.43,669.09,2.099]
[1752150090510,1.67084216,669.41,669.09,2.099]
[1752150091310,1.67084216,669.4,669.09,2.099]
[1752150092308,1.67084216,669.39,669.09,2.099]
[1752150093307,1.67084216,669.38,669.09,2.099]
[1752150093913,1.67084216,669.39,669.09,2.099]
[1752150094912,1.67084216,669.38,669.09,2.099]
[1752150096417,1.67084216,669.37,669.09,2.099]
[1752150098419,1.67084216,669.36,669.09,2.099]
[1752150103622,1.67084216,669.34,669.09,2.099]
[1752150107827,1.67084216,669.35,669.09,2.099]
[1752150108028,1.67084216,669.36,669.09,2.099]
[1752150108528,1.67084216,669.37,669.09,2.099]
[1752150115132,1.67084216,669.36,669.09,2.099]
[1752150117835,1.67084216,669.35,669.09,2.099]
[1752150118333,1.67084216,669.33,669.09,2.099]
[1752150119243,1.67084216,669.34,669.09,2.099]
[1752150122034,1.67084216,669.33,669.09,2.099]
[1752150122435,1.67084216,669.34,669.09,2.099]
[1752150123439,3.34996981,669.6,669.09,2.099]
[1752150123635,1.67636265,669.35,669.09,2.099]
[1752150126438,1.67636265,669.36,669.09,2.099]
[1752150128138,1.67636265,669.38,669.09,2.099]
[1752150132845,1.67636265,669.37,669.09,2.099]
[1752150136447,1.67636265,669.38,669.09,2.099]
[1752150137254,1.67636265,669.37,669.09,2.099]
[1752150137953,1.67636265,669.38,669.09,2.099]
[1752150138755,1.67636265,669.37,669.09,2.099]
[1752150139757,1.67636265,669.37,669.08,0.25994204]
[1752150140158,1.67636265,669.39,669.08,0.25994204]
[1752150141657,1.67636265,669.4,669.08,0.25994204]
[1752150142656,1.67636265,669.4,669.09,1.547]
[1752150143153,2.2351502,669.59,669.09,1.547]
[1752150143456,1.67598083,669.4,669.09,1.547]
[1752150143865,3.3527253,669.78,669.09,1.547]
[1752150143866,1.67598083,669.37,669.09,1.547]
[1752150144355,1.67598083,669.38,669.09,1.547]
[1752150144860,1.67598083,669.37,669.09,1.547]
[1752150146361,1.67598083,669.36,669.09,1.547]
[1752150149963,1.67598083,669.34,669.09,1.547]
[1752150150559,1.67598083,669.35,669.09,1.547]
[1752150151459,1.67598083,669.34,669.09,1.547]
[1752150151763,1.67598083,669.32,669.09,1.547]
[1752150155462,1.67598083,669.33,669.09,1.547]
[1752150155665,1.67598083,669.32,669.09,1.547]
[1752150156065,1.67598083,669.33,669.09,1.547]
[1752150158061,1.67598083,669.36,669.09,1.547]
[1752150160265,1.67598083,669.37,669.09,1.547]
[1752150162169,1.67598083,669.38,669.09,1.547]
[1752150162469,1.67598083,669.39,669.09,1.547]
[1752150166068,1.67598083,669.38,669.09,1.547]
[1752150167974,1.67598083,669.37,669.09,1.547]
[1752150170480,1.67598083,669.43,669.09,1.547]
[1752150172182,1.67598083,669.42,669.09,1.547]
[1752150178584,1.67598083,669.41,669.09,1.547]
[1752150179685,1.67598083,669.41,669.08,0.25994204]
[1752150179885,1.67598083,669.42,669.08,0.25994204]
[1752150180185,1.67598083,669.37,669.08,0.25994204]
[1752150182886,1.67598083,669.38,669.08,0.25994204]
[1752150184189,1.67598083,669.35,669.08,0.25994204]
[1752150184890,1.67598083,669.36,669.08,0.25994204]
[1752150190393,1.67598083,669.35,669.08,0.25994204]
[1752150192299,1.67598083,669.34,669.08,0.25994204]
[1752150194302,1.67598083,669.32,669.08,0.25994204]
[1752150194503,1.67598083,669.31,669.08,0.25994204]
[1752150194804,1.67598083,669.32,669.08,0.25994204]
[1752150195400,1.67598083,669.31,669.08,0.25994204]
[1752150197001,1.67598083,669.3,669.08,0.25994204]
[1752150197905,1.67598083,669.33,669.08,0.25994204]
[1752150198103,1.6764939,669.33,669.08,0.25994204]
[1752150198302,1.6764939,669.32,669.08,0.25994204]
[1752150202206,1.6764939,669.32,668.7,2.23950541]
[1752150202403,1.6764939,669.32,668.96,0.26002264]
[1752150202606,1.6764939,669.32,668.7,2.23950541]
[1752150202804,1.6764939,669.31,668.91,1.541]
[1752150203302,1.6764939,669.32,668.91,1.541]
[1752150203605,1.6764939,669.31,668.96,0.26000321]
[1752150205409,1.6764939,669.33,668.96,0.26000321]
[1752150207410,1.6764939,669.32,668.96,0.26000321]
[1752150207707,1.6764939,669.3,668.96,0.26000321]
[1752150209308,1.6764939,669.29,668.96,0.26000321]
[1752150210308,1.6764939,669.3,668.96,0.26000321]
[1752150211012,1.6764939,669.27,668.96,0.26000321]
[1752150211409,1.6764939,669.28,668.96,0.26000321]
[1752150212508,1.67624269,669.28,668.96,0.26000321]
[1752150214812,1.67624269,669.29,668.96,0.26000321]
[1752150217914,1.67624269,669.3,668.96,0.26000321]
[1752150222819,1.67624269,669.32,668.96,0.26000321]
[1752150223620,1.67624269,669.29,668.96,0.26000321]
[1752150227930,1.67624269,669.3,668.96,0.26000321]
[1752150232431,1.67624269,669.28,668.97,2.428]
[1752150233133,1.67624269,669.29,668.97,2.428]
[1752150234834,1.67624269,669.28,668.97,2.428]
[1752150236336,1.67624269,669.29,668.97,2.428]
[1752150237736,1.67624269,669.28,668.97,2.428]
[1752150238039,1.67624269,669.29,668.97,2.428]
[1752150238833,1.67624269,669.3,668.97,2.428]
[1752150240635,2.2351502,669.46,668.97,2.428]
[1752150240840,1.675258,669.3,668.97,2.428]
[1752150242337,1.675258,669.29,668.97,2.428]
[1752150244744,1.675258,669.3,668.97,2.428]
[1752150248640,1.675258,669.29,668.97,2.428]
[1752150250250,1.675258,669.28,668.97,2.428]
[1752150250847,1.675258,669.29,668.97,2.428]
[1752150252851,1.675258,669.31,668.97,2.428]
[1752150253448,1.675258,669.3,668.97,2.428]
[1752150254749,1.675258,669.31,668.97,2.428]
[1752150255754,1.675258,669.3,668.97,2.428]
[1752150259557,1.675258,669.29,668.97,2.428]
[1752150262858,1.675258,669.27,668.97,2.428]
[1752150264154,1.675258,669.29,668.97,2.428]
[1752150264356,1.675258,669.28,668.97,2.428]
[1752150264660,1.675258,669.27,668.97,2.428]
[1752150265360,1.675258,669.28,668.97,2.428]
[1752150267362,1.675258,669.27,668.97,2.428]
[1752150267558,1.675258,669.28,668.97,2.428]
[1752150269364,1.675258,669.26,668.96,0.26000321]
[1752150269565,1.675258,669.25,668.96,0.26000321]
[1752150271767,1.675258,669.23,668.96,0.26000321]
[1752150272966,1.675258,669.24,668.96,0.26000321]
[1752150273165,1.675258,669.24,668.97,1.751]
[1752150275670,1.675258,669.23,668.97,1.751]
[1752150277473,1.675258,669.24,668.97,1.751]
[1752150281983,1.675258,669.22,668.97,1.751]
[1752150286786,1.675258,669.21,668.97,1.751]
[1752150287382,1.675258,669.2,668.97,1.751]
[1752150287984,1.675258,669.24,668.97,1.751]
[1752150293089,1.675258,669.23,668.97,1.751]
[1752150295494,1.675258,669.24,668.97,1.751]
[1752150297793,1.675258,669.22,668.97,1.751]
[1752150299591,1.675258,669.23,668.97,1.751]
[1752150301093,1.675258,669.22,668.97,1.751]
[1752150301491,1.675258,669.23,668.97,1.751]
[1752150302895,1.675258,669.25,668.97,1.751]
[1752150305695,1.675258,669.24,668.97,1.751]
[1752150310200,1.675258,669.24,668.96,0.26000321]
[1752150312301,1.675258,669.23,668.96,0.26000321]
[1752150312499,1.675258,669.23,668.97,2.077]
[1752150312997,1.675258,669.22,668.97,2.077]
[1752150313605,1.675258,669.21,668.97,2.077]
[1752150313800,1.675258,669.22,668.97,2.077]
[1752150318002,1.675258,669.25,668.97,2.077]
[1752150319002,1.675258,669.24,668.97,2.077]
[1752150322103,1.675258,669.25,668.97,2.077]
[1752150323708,1.675258,669.24,668.97,2.077]
[1752150327110,1.675258,669.18,668.97,2.077]
[1752150327311,1.46323752,669.17,668.97,2.077]
[1752150327507,1.46323752,669.16,668.97,2.077]
[1752150327810,1.46323752,669.15,668.97,2.077]
[1752150328010,1.46323752,669.14,668.97,2.077]
[1752150328210,1.46323752,669.13,668.97,2.077]
[1752150328505,1.46323752,669.12,668.97,2.077]
[1752150328711,1.46323752,669.11,668.97,2.077]
[1752150328911,1.46323752,669.1,668.97,2.077]
[1752150329110,1.46323752,669.09,668.97,2.077]
[1752150329312,1.46323752,669.08,668.97,2.077]
[1752150329511,1.46323752,669.07,668.97,2.077]
[1752150329709,1.46323752,669.06,668.97,2.077]
[1752150329908,1.46323752,669.05,668.97,2.077]
[1752150330109,1.46323752,669.04,668.97,2.077]
[1752150330312,1.46323752,669.03,668.97,2.077]
[1752150330612,1.46323752,669.02,668.97,2.077]
[1752150330813,1.46323752,669.01,668.97,2.077]
[1752150331013,1.46323752,669.0,668.97,2.077]
[1752150331207,1.46323752,668.99,668.97,2.077]
[1752150331410,1.46323752,668.98,668.97,2.077]
[1752150348525,2.2351502,669.29,668.97,2.077]
[1752150348828,1.67833701,669.15,668.97,2.077]
[1752150349027,1.46343848,669.14,668.97,2.077]
[1752150349324,1.46343848,669.13,668.97,2.077]
[1752150349525,1.46343848,669.12,668.97,2.077]
[1752150349723,1.46343848,669.11,668.97,2.077]
[1752150349927,1.46343848,669.1,668.97,2.077]
[1752150350223,1.46343848,669.09,668.97,2.077]
[1752150350425,1.46343848,669.08,668.97,2.077]
[1752150350628,1.46343848,669.07,668.97,2.077]
[1752150350927,1.46343848,669.06,668.97,2.077]
[1752150351127,1.46343848,669.05,668.97,2.077]
[1752150351327,1.46343848,669.04,668.97,2.077]
[1752150351527,1.46343848,669.03,668.97,2.077]
[1752150351723,1.46343848,669.02,668.97,2.077]
[1752150351923,1.46343848,669.01,668.97,2.077]
[1752150352128,1.46343848,669.0,668.97,2.077]
[1752150352325,1.46343848,668.99,668.97,2.077]
[1752150352526,1.46343848,668.98,668.97,2.077]
[1752150356039,2.2351502,669.25,668.97,2.077]
[1752150356236,1.67831557,669.12,668.97,2.077]
[1752150356535,1.46342099,669.11,668.97,2.077]
[1752150356736,1.46342099,669.1,668.97,2.077]
[1752150357033,1.67831557,669.13,668.97,2.077]
[1752150357337,1.67831557,669.2,668.97,2.077]
[1752150357638,1.67831557,669.2,668.96,0.26000321]
[1752150358040,1.67831557,669.23,668.96,0.26000321]
[1752150360342,1.67831557,669.23,668.97,2.27]
[1752150361242,1.67831557,669.28,668.97,2.27]
[1752150365038,1.67831557,669.29,668.97,2.27]
[1752150366744,1.67831557,669.28,668.97,2.27]
[1752150367046,1.67831557,669.25,668.97,2.27]
[1752150367447,1.67831557,669.3,668.97,2.27]
[1752150367652,1.67831557,669.31,668.97,2.27]
[1752150367844,1.67831557,669.32,668.97,2.27]
[1752150368048,1.67831557,669.33,668.97,2.27]
[1752150368248,1.67831557,669.36,668.97,2.27]
[1752150369249,1.67831557,669.37,668.97,2.27]
[1752150369546,1.67831557,669.38,668.97,2.27]
[1752150371150,1.67831557,669.39,668.97,2.27]
[1752150373151,1.67831557,669.4,668.97,2.27]
[1752150373454,1.67831557,669.38,668.97,2.27]
[1752150374254,1.67831557,669.39,668.97,2.27]
[1752150374751,1.67831557,669.42,668.97,2.27]
[1752150376152,1.67831557,669.43,668.97,2.27]
[1752150376354,1.67831557,669.42,668.97,2.27]
[1752150377857,1.67831557,669.41,668.97,2.27]
[1752150378061,1.67831557,669.43,668.97,2.27]
[1752150378261,1.67831557,669.44,668.96,0.26000321]